fUSD/lending_fUSD_20250119
["ID","MTS","AMOUNT","RATE_DAILY","PERIOD"]
[349516115,1737265832036,-438.32,0.00010474,2]
[349516116,1737265832046,-243.2,0.00010502,2]
[349516117,1737265832055,-250.0,0.00010571,2]
[349516118,1737265832065,-1000.0,0.00010596,2]
[349516119,1737265832074,-1692.82,0.00010627,2]
[349516120,1737265832083,-150.0,0.00010685,2]
[349516121,1737265832092,-186.26,0.00010722,2]
[349516122,1737265832102,-311.26,0.00010722,2]
[349516123,1737265832112,-694.7,0.00010728,2]
[349516124,1737265832121,-513.94,0.00010745,2]
[349516125,1737265832131,-200.0,0.00010747,2]
[349516126,1737265832140,-678.07417635,0.00010765,2]
[349516127,1737265832152,-1498.78949728,0.00010765,2]
[349516128,1737265832163,-121.50632637,0.00010765,2]
[349516129,1737265832172,-412.7277,0.00010782,2]
[349516130,1737265832181,-173.91,0.00010815,2]
[349516131,1737265832190,-170.53,0.00010843,2]
[349516132,1737265832200,-300.0,0.00010881,2]
[349516133,1737265832210,-4.03689076,0.00010882,2]
[349516134,1737265832225,-298.60459917,0.00010882,2]
[349516135,1737265832240,-69.29851007,0.00010882,2]
[349516136,1737265832250,-185.07283791,0.00011109,2]
[349516137,1737265832269,-460.74,0.00011109,2]
[349516138,1737265832280,-1026.73024974,0.00011109,2]
[349516139,1737265832357,-1012.45691235,0.00011109,2]
[349516140,1737265832367,-191.85658315,0.00011397,2]
[349516141,1737265832415,-238.46124175,0.00011397,2]
[349516142,1737265832424,-224.8320808,0.00011537,2]
[349516143,1737265832433,-150.0,0.00011672,2]
[349516144,1737265832442,-36.1985672,0.00011673,2]
[349516145,1737265832474,-2878.51951577,0.00011673,2]
[349516146,1737265832534,-949.72921703,0.00011673,2]
[349516147,1737265832544,-1000.0,0.00011673,2]
[349516148,1737265832553,-603.3731,0.00011673,2]
[349516149,1737265832562,-182.7459,0.00011673,2]
[349516150,1737265832572,-6224.35535827,0.00011673,2]
[349516242,1737265838058,-735.15365519,0.00011673,2]
[349516243,1737265838117,-8434.64138654,0.00011673,2]
[349516244,1737265838126,-106.84744247,0.00011673,2]
[349516245,1737265838137,-2597.6150036,0.00011673,2]
[349516246,1737265838149,-3550.91985393,0.00011673,2]
[349516247,1737265838158,-1021.70150349,0.00011673,2]
[349516248,1737265838234,-548.35263034,0.00011673,2]
[349516249,1737265838246,-5677.25726617,0.00011673,2]
[349516250,1737265838255,-708.5998,0.0001168,2]
[349516251,1737265838264,-2500.0,0.0001168,2]
[349516252,1737265838273,-403.41191155,0.00011682,2]
[349516253,1737265838282,-710.73102228,0.00011698,2]
[349516258,1737265840068,-772.83,0.00011699,2]
[349516259,1737265840077,-500.0,0.000117,2]
[349516260,1737265840087,-1443.0,0.000117,2]
[349516261,1737265840095,-4178.64434551,0.00011704,2]
[349516289,1737265843093,-821.35565449,0.00011704,2]
[349516292,1737265843103,-10313.26574506,0.00011723,2]
[349516294,1737265843112,-15874.17688919,0.0001173,2]
[349516296,1737265843121,-10313.26574506,0.00011749,2]
[349516299,1737265843130,-5150.76360973,0.00011752,2]
[349516302,1737265843138,-5214.8144,0.00011753,2]
[349516305,1737265843147,-15874.17688919,0.00011759,2]
[349516308,1737265843156,-15874.17688919,0.00011762,2]
[349516311,1737265843166,-209.21530686,0.00011765,2]
[349516314,1737265843175,-5150.76360973,0.00011767,2]
[349516316,1737265843184,-934.47874476,0.0001177,2]
[349516318,1737265843193,-1892.802,0.00011771,2]
[349516319,1737265843202,-154.56273338,0.00011771,2]
[349516321,1737265843215,-79301.12035364,0.00011773,2]
[349516323,1737265843224,-195.68176179,0.00011773,2]
[349516325,1737265843233,-3000.0,0.00011773,2]
[349516327,1737265843243,-3272.06197772,0.00011774,2]
[349516329,1737265843252,-10313.26574506,0.00011774,2]
[349516331,1737265843261,-573.50706288,0.00011774,2]
[349516333,1737265843270,-6057.64531367,0.00011774,2]
[349516335,1737265843280,-333.99702731,0.00011777,2]
[349516337,1737265843289,-934.47874476,0.00011778,2]
[349516339,1737265843298,-736.49134127,0.00011778,2]
[349516341,1737265843308,-217.60845804,0.00011779,2]
[349516343,1737265843317,-100546.7562,0.0001178,2]
[349516345,1737265843326,-934.47874476,0.00011781,2]
[349516347,1737265843335,-2337.19014025,0.00011781,2]
[349516349,1737265843344,-5196.12278559,0.00011781,2]
[349516351,1737265843353,-656.73428701,0.00011781,2]
[349516353,1737265843362,-885.567,0.00011782,2]
[349516355,1737265843371,-1839.748,0.00011782,2]
[349516357,1737265843381,-200.0,0.00011782,2]
[349516359,1737265843390,-15874.17688919,0.00011782,2]
[349516361,1737265843399,-19404.77365476,0.00011783,2]
[349516363,1737265843408,-3272.06197772,0.00011784,2]
[349516365,1737265843418,-5150.76360973,0.00011785,2]
[349516366,1737265843427,-200.0,0.00011785,2]
[349516368,1737265843436,-934.47874476,0.00011786,2]
[349516370,1737265843446,-29516.05415944,0.00011787,2]
[349516372,1737265843458,-403.59122846,0.00011787,2]
[349516374,1737265843468,-16292.43749348,0.00011787,2]
[349516376,1737265843477,-3554.69450498,0.00011787,2]
[349516378,1737265843488,-333.99702731,0.00011787,2]
[349516380,1737265843497,-3554.69450498,0.00011789,2]
[349516382,1737265843506,-403.59122846,0.0001179,2]
[349516384,1737265843515,-375.91379713,0.0001179,2]
[349516386,1737265843525,-21460.26820611,0.00011791,2]
[349516388,1737265843534,-6601.81303368,0.00011793,2]
[349516392,1737265843543,-3272.06197772,0.00011794,2]
[349516395,1737265843553,-21460.26820611,0.00011794,2]
[349516398,1737265843562,-5196.12278559,0.00011794,2]
[349516400,1737265843572,-2337.19014025,0.00011796,2]
[349516402,1737265843581,-218.44802771,0.00011796,2]
[349516404,1737265843591,-2337.19014025,0.00011797,2]
[349516406,1737265843600,-573.50706288,0.00011798,2]
[349516408,1737265843609,-10313.26574506,0.00011799,2]
[349516410,1737265843619,-7241.57230788,0.000118,2]
[349516412,1737265843628,-1000.0,0.000118,2]
[349516414,1737265843637,-19404.77365476,0.000118,2]
[349516416,1737265843646,-656.73428701,0.00011801,2]
[349516419,1737265843655,-5150.76360973,0.00011802,2]
[349516420,1737265843665,-15874.17688919,0.00011802,2]
[349516421,1737265843674,-5196.12278559,0.00011803,2]
[349516422,1737265843683,-6601.81303368,0.00011803,2]
[349516424,1737265843693,-573.50706288,0.00011803,2]
[349516426,1737265843703,-736.49134127,0.00011804,2]
[349516427,1737265843715,-218.8023107,0.00011806,2]
[349516428,1737265843724,-258025.22043094,0.00011806,2]
[349516429,1737265843733,-5150.76360973,0.00011806,2]
[349516430,1737265843743,-7241.57230788,0.00011807,2]
[349516431,1737265843752,-573.50706288,0.00011807,2]
[349516432,1737265843762,-934.47874476,0.00011808,2]
[349516433,1737265843772,-2337.19014025,0.00011809,2]
[349516434,1737265843781,-2102.22308355,0.00011814,2]
[349516435,1737265843790,-151.0,0.00011824,2]
[349516436,1737265843799,-281.881359,0.00011824,2]
[349516437,1737265843809,-10313.26574506,0.00011824,2]
[349516438,1737265843818,-510.28092612,0.00011835,2]
[349516439,1737265843827,-10313.26574506,0.0001185,2]
[349516440,1737265843981,-10625.84356759,0.00011864,2]
[349516441,1737265843992,-10313.26574506,0.00011875,2]
[349516442,1737265844002,-151.0,0.00011875,2]
[349516443,1737265844011,-10625.84356759,0.00011876,2]
[349516444,1737265844021,-20000.0,0.0001188,2]
[349516445,1737265844031,-10625.84356759,0.00011888,2]
[349516446,1737265844039,-8770.5892392,0.00011892,2]
[349516447,1737265844048,-4607.71605732,0.00011894,2]
[349516448,1737265844057,-1404.24349807,0.000119,2]
[349516449,1737265844067,-169.56200887,0.000119,2]
[349516450,1737265844076,-10313.26574506,0.000119,2]
[349516451,1737265844085,-10625.84356759,0.000119,2]
[349516452,1737265844094,-151.0,0.000119,2]
[349516453,1737265844103,-557.5269697,0.000119,2]
[349516454,1737265844112,-191.54141768,0.000119,2]
[349516455,1737265844121,-200.0,0.000119,2]
[349516456,1737265844131,-1552.54812994,0.000119,2]
[349516457,1737265844140,-1151.39894514,0.000119,2]
[349516458,1737265844148,-1000.0,0.0001192,2]
[349516459,1737265844158,-2581.62121623,0.00011954,2]
[349516460,1737265844167,-420.0,0.00011958,2]
[349516461,1737265844176,-672.44042542,0.00011972,2]
[349516462,1737265844185,-1033.0,0.00011973,2]
[349516463,1737265844195,-45976.0,0.00011973,2]
[349516464,1737265844204,-9869.0,0.00011973,2]
[349516465,1737265844214,-61380.0,0.00011973,2]
[349516466,1737265844223,-500.0,0.00011973,2]
[349516467,1737265844232,-152.00231655,0.00011973,2]
[349516468,1737265844241,-500.0,0.00011973,2]
[349516469,1737265844250,-150.98898508,0.00011973,2]
[349516470,1737265844259,-160.98246988,0.00011973,2]
[349516471,1737265844268,-151.98974172,0.00011973,2]
[349516472,1737265844277,-500.0,0.00011973,2]
[349516473,1737265844286,-161.78615975,0.00011973,2]
[349516474,1737265844295,-151.0,0.00011973,2]
[349516475,1737265844304,-20000.0,0.00011981,2]
[349516476,1737265844313,-285.65219739,0.0001199,2]
[349516477,1737265844322,-285.65219739,0.0001199,2]
[349516478,1737265844331,-208.14275506,0.00011991,2]
[349516479,1737265844340,-199.090106,0.00011992,2]
[349516480,1737265844349,-10086.6600558,0.00011992,2]
[349516481,1737265844358,-11402.7308723,0.00011992,2]
[349516482,1737265844367,-12718.8016888,0.00011992,2]
[349516483,1737265844376,-500.0,0.00011998,2]
[349516484,1737265844385,-1014.65330177,0.00011999,3]
[349516485,1737265844394,-1037.10875048,0.00011999,3]
[349516486,1737265844403,-1037.10875048,0.00011999,3]
[349516487,1737265844412,-1037.10875048,0.00011999,3]
[349516488,1737265844421,-500.0,0.00011999,2]
[349516489,1737265844430,-150.51423194,0.00011999,2]
[349516490,1737265844439,-150.98579412,0.00011999,2]
[349516491,1737265844449,-407070.34513064,0.00012,2]
[349516492,1737265844646,-4268.811762,0.00012,2]
[349516493,1737265846361,-3503.9416473,0.00011892,2]
[349516494,1737265846371,-1000.0,0.000119,2]
[349516495,1737265846381,-4029.7256304,0.00011992,2]
[349516496,1737265846391,-4555.5096136,0.00011992,2]
[349516497,1737265846400,-1916.68527709,0.00011992,2]
[349516603,1737266406248,-1000.0,0.00011137,2]
[349516604,1737266406273,-250.0,0.0001118,2]
[349516605,1737266406299,-176.01,0.00011497,2]
[349516606,1737266406325,-201.166352,0.00011573,2]
[349516607,1737266406349,-430.3178249,0.00011611,2]
[349516608,1737266406374,-10942.5058231,0.00011672,2]
[349516609,1737266451422,-680.5,9.245e-05,2]
[349516610,1737266451453,-680.5,0.00011509,2]
[349516611,1737266451478,-804.6619,0.00011673,2]
[349516612,1737266451502,-1000.0,0.00011673,2]
[349516613,1737266451526,-5000.0,0.00011716,2]
[349516614,1737266451556,-6195.98561325,0.00011716,2]
[349516615,1737266451583,-2667.89956047,0.00011716,2]
[349516616,1737266451609,-6195.98561325,0.00011721,2]
[349516617,1737266451634,-2374.46731303,0.00011732,2]
[349516619,1737266776822,150.0,0.00022,30]
[349516622,1737267012121,-2000.0,9.6e-05,2]
[349516623,1737267012149,-158.56,0.00010137,2]
[349516624,1737267012172,-418.7,0.00011098,2]
[349516625,1737267012207,-250.0,0.00011102,2]
[349516626,1737267012244,-297.55,0.00011118,2]
[349516627,1737267012266,-6009.09342648,0.00011118,2]
[349516628,1737267012288,-250.0,0.00011138,2]
[349516629,1737267012310,-430.3178249,0.000117,2]
[349516630,1737267012334,-293.43224744,0.00011732,2]
[349516631,1737267012358,-209.15294991,0.00011737,2]
[349516632,1737267012382,-2667.89956047,0.00011739,2]
[349516633,1737267012405,-2667.89956047,0.00011752,2]
[349516634,1737267012428,-200.0,0.00011753,2]
[349516635,1737267012454,-2667.89956047,0.00011754,2]
[349516636,1737267012476,-209.15294991,0.00011761,2]
[349516637,1737267012509,-1174.34191995,0.00011762,2]
[349516638,1737267036829,-1472.14757156,0.00011762,2]
[349516639,1737267037176,-947.31015434,0.00011762,2]
[349516640,1737267037188,-2602.1859674,0.00011762,2]
[349516641,1737267037197,-209.15294991,0.00011767,2]
[349516642,1737267037207,-209.15294991,0.00011778,2]
[349516643,1737267037217,-500.0,0.00011781,2]
[349516644,1737267037229,-209.15294991,0.00011783,2]
[349516645,1737267037239,-6195.98561325,0.00011799,2]
[349516646,1737267037249,-6195.98561325,0.00011799,2]
[349516647,1737267037260,-200.0,0.00011809,2]
[349516648,1737267037269,-1716.914,0.00011899,2]
[349516649,1737267037278,-150.0,0.00011899,2]
[349516650,1737267037288,-6040.66891734,0.000119,2]
[349516651,1737267037312,-3899.36382086,0.000119,2]
[349516652,1737267037328,-1925.13,0.000119,2]
[349516653,1737267037340,-1185.71111757,0.000119,2]
[349516654,1737267037390,-4793.7,0.000119,2]
[349516655,1737267037402,-3799.37093081,0.000119,2]
[349516656,1737267037413,-1426.79564478,0.000119,2]
[349516657,1737267037433,-5283.57265998,0.000119,2]
[349516706,1737267038257,-201.166352,0.00011799,2]
[349516707,1737267038267,-14459.76740866,0.000119,2]
[349516708,1737267038276,-1465.00805105,0.000119,2]
[349516709,1737267038286,-169.56200885,0.000119,2]
[349516710,1737267038297,-322.1206,0.000119,2]
[349516711,1737267038308,-5000.0,0.000119,2]
[349516712,1737267038317,-1428.2533,0.000119,2]
[349516713,1737267038327,-371.68464646,0.000119,2]
[349516714,1737267038337,-11181.82531382,0.000119,2]
[349516715,1737267038352,-394.827,0.000119,2]
[349516716,1737267038457,-511.90603702,0.000119,2]
[349516717,1737267038468,-468.40396298,0.000119,2]
[349516901,1737267040528,-1796.0,0.000118,2]
[349516903,1737267040538,-3461.2728771,0.000119,2]
[349516904,1737267040547,-1035.03208662,0.000119,2]
[349516906,1737267040557,-669.47665604,0.000119,2]
[349516907,1737267040567,-1134.06726596,0.000119,2]
[349516908,1737267040576,-173.91,0.00011911,2]
[349516909,1737267040585,-5456.27052148,0.00011973,2]
[349516910,1737267040635,-458.72947852,0.00011973,2]
[349516911,1737267040644,-500.0,0.00011973,2]
[349516912,1737267040653,-92.17052148,0.00011973,2]
[349516913,1737267040665,-72.18723873,0.00011973,2]
[349516914,1737267040674,-177.73460843,0.00011973,2]
[349516915,1737267040683,-293.00888825,0.00011973,2]
[349516916,1737267040693,-160.00243856,0.00011973,2]
[349516917,1737267040702,-160.00245146,0.00011973,2]
[349516918,1737267040712,-160.5730571,0.00011973,2]
[349516919,1737267040721,-248.94429917,0.00011973,2]
[349516931,1737267043360,-251.05570083,0.00011973,2]
[349516932,1737267043370,-500.0,0.00011973,2]
[349516933,1737267043379,-161.9185283,0.00011973,2]
[349516934,1737267043388,-285.65219739,0.0001199,2]
[349516935,1737267043397,-500.0,0.00011992,2]
[349516936,1737267043406,-500.0,0.00011992,2]
[349516937,1737267043415,-500.0,0.00011992,2]
[349516938,1737267043424,-500.0,0.00011992,2]
[349516939,1737267043433,-755.0,0.00011992,2]
[349516940,1737267043443,-4824.1714316,0.00011992,2]
[349516941,1737267043452,-204.54163828,0.00011992,2]
[349516942,1737267043673,-1000.0,0.000119,2]
[349516944,1737267043683,-2242.28823682,0.00011992,2]
[349516946,1737267043692,-4891.13931098,0.00011992,2]
[349517046,1737267046255,-2507.37811944,0.00011992,2]
[349517047,1737267046369,-1602.118805,0.00011992,2]
[349517048,1737267046401,-308.74752531,0.00011992,2]
[349517049,1737267046662,-0.08831962,0.00011992,2]
[349517050,1737267052604,7940.79629541,0.0002021,30]
[349517051,1737267070032,15881.59259056,0.0002021,30]
[349517052,1737267092071,23822.38888584,0.0002021,30]
[349517053,1737267113525,15881.59259056,0.0002021,30]
[349517054,1737267130999,7940.79629528,0.0002021,30]
[349517055,1737267144667,7940.79629528,0.0002021,30]
[349517085,1737268232409,-639.82,9.217e-05,2]
[349517086,1737268232419,-170.68,0.00010137,2]
[349517087,1737268232429,-300.61939698,0.00010807,2]
[349517088,1737268232440,-300.0,0.00010872,2]
[349517089,1737268232449,-20923.35,0.00010873,2]
[349517090,1737268232459,-250.0,0.00010907,2]
[349517091,1737268232468,-290.22,0.00010981,2]
[349517092,1737268232478,-335.43,0.00011003,2]
[349517093,1737268232487,-1852.42,0.00011021,2]
[349517094,1737268232497,-250.0,0.00011022,2]
[349517095,1737268232507,-943.89,0.0001104,2]
[349517096,1737268232516,-196.86,0.00011057,2]
[349517097,1737268232526,-300.61939696,0.00011294,2]
[349517098,1737268232535,-639.82,0.00011481,2]
[349517099,1737268232545,-430.3178249,0.00011547,2]
[349517100,1737268232554,-311.59,0.00011699,2]
[349517101,1737268232564,-12387.82616685,0.00011716,2]
[349517102,1737268232573,-1582.67780678,0.0001172,2]
[349517103,1737268232582,-12387.82616685,0.0001172,2]
[349517104,1737268232592,-350.71371452,0.00011723,2]
[349517105,1737268232601,-1582.67780678,0.00011723,2]
[349517106,1737268232614,-2185.9332372,0.00011725,2]
[349517107,1737268232624,-1582.67780678,0.00011728,2]
[349517108,1737268232634,-12387.82616685,0.00011729,2]
[349517109,1737268232643,-350.71371452,0.00011732,2]
[349517110,1737268232652,-200.0,0.00011735,2]
[349517111,1737268232662,-2185.9332372,0.00011735,2]
[349517112,1737268232672,-2185.9332372,0.00011736,2]
[349517113,1737268232683,-1582.67780678,0.00011748,2]
[349517114,1737268232694,-350.71371452,0.0001175,2]
[349517115,1737268232703,-10371.58093235,0.00011752,2]
[349517116,1737268232715,-667.29887364,0.00011752,2]
[349517117,1737268232727,-1348.94636086,0.00011752,2]
[349517118,1737268232736,-187.58,0.00011758,2]
[349517119,1737268232745,-298.9764879,0.0001176,2]
[349517120,1737268232755,-5981.66326167,0.0001176,2]
[349517121,1737268232765,-2185.9332372,0.00011763,2]
[349517122,1737268232774,-2185.9332372,0.00011769,2]
[349517123,1737268232784,-5981.66326167,0.00011772,2]
[349517124,1737268232794,-3678.94986888,0.0001178,2]
[349517125,1737268232803,-1373.531,0.0001178,2]
[349517126,1737268232814,-300.61939696,0.00011781,2]
[349517127,1737268232823,-3678.94986888,0.00011783,2]
[349517128,1737268232833,-5981.66326167,0.00011783,2]
[349517129,1737268232842,-5981.66326167,0.00011783,2]
[349517130,1737268232852,-350.71371452,0.00011784,2]
[349517131,1737268232862,-5981.66326167,0.00011789,2]
[349517132,1737268232871,-3678.94986888,0.00011798,2]
[349517133,1737268232881,-3443.61454796,0.00011799,2]
[349517134,1737268232893,-6557.28044361,0.00011799,2]
[349517135,1737268232930,-2386.93117528,0.00011799,2]
[349517137,1737268232940,-3678.94986888,0.00011801,2]
[349517139,1737268232949,-1582.67780678,0.00011805,2]
[349517141,1737268232958,-350.71371452,0.00011809,2]
[349517143,1737268232967,-3678.94986888,0.00011809,2]
[349517145,1737268232978,-150.0,0.00011879,2]
[349517148,1737268232988,-18405.24008831,0.0001188,2]
[349517150,1737268232999,-6368.89659246,0.0001188,2]
[349517152,1737268233010,-1885.24001276,0.0001188,2]
[349517154,1737268233021,-1069.00829095,0.0001188,2]
[349517161,1737268233076,-752.76793986,0.0001188,2]
[349517166,1737268233112,-7388.43888594,0.0001188,2]
[349517303,1737268238495,-2411.28320792,0.0001188,2]
[349517304,1737268238576,-1593.1249818,0.0001188,2]
[349517305,1737268238586,-218.50907429,0.00011882,2]
[349517306,1737268238596,-4540.1887016,0.00011882,2]
[349517307,1737268238610,-37995.60475296,0.00011882,2]
[349517308,1737268238619,-1255.72118664,0.000119,2]
[349517309,1737268238628,-20054.3357,0.000119,2]
[349517310,1737268238638,-23130.41616162,0.000119,2]
[349517311,1737268238651,-1189.22387169,0.000119,2]
[349517319,1737268240577,-5253.60059999,0.000119,2]
[349517320,1737268240662,-6265.67911967,0.000119,2]
[349517321,1737268240675,-270.31851997,0.000119,2]
[349517322,1737268240807,-50310.93513975,0.000119,2]
[349517323,1737268240816,-169.56200885,0.000119,2]
[349517324,1737268240826,-302.29,0.000119,2]
[349517325,1737268240835,-352.98542265,0.000119,2]
[349517326,1737268240844,-5000.0,0.000119,2]
[349517327,1737268240853,-247.7897643,0.000119,2]
[349517328,1737268240862,-12338.98776527,0.000119,2]
[349517329,1737268240871,-690.02139108,0.000119,2]
[349517330,1737268240880,-250.0,0.00011904,2]
[349517331,1737268240889,-420.0,0.00011949,2]
[349517333,1737268240898,-500.0,0.00011973,2]
[349517335,1737268240907,-500.0,0.00011973,2]
[349517336,1737268240915,-500.0,0.00011973,2]
[349517337,1737268240925,-353.79067808,0.00011973,2]
[349517338,1737268240935,-358.877048,0.0001199,2]
[349517339,1737268240944,-358.877048,0.0001199,2]
[349517340,1737268240953,-500.0,0.00011992,2]
[349517341,1737268240962,-500.0,0.00011992,2]
[349517342,1737268240971,-500.0,0.00011992,2]
[349517343,1737268240980,-500.0,0.00011992,2]
[349517344,1737268240990,-500.0,0.00011992,2]
[349517345,1737268240999,-500.0,0.00011992,2]
[349517347,1737268241008,-500.0,0.00011992,2]
[349517349,1737268241018,-500.0,0.00011992,2]
[349517351,1737268241026,-500.0,0.00011992,2]
[349517353,1737268241036,-500.0,0.00011992,2]
[349517355,1737268241045,-500.0,0.00011992,2]
[349517357,1737268241055,-500.0,0.00011992,2]
[349517359,1737268241066,-500.0,0.00011992,2]
[349517360,1737268241075,-500.0,0.00011992,2]
[349517361,1737268241085,-500.0,0.00011992,2]
[349517362,1737268241095,-500.0,0.00011992,2]
[349517363,1737268241104,-500.0,0.00011992,2]
[349517364,1737268241114,-500.0,0.00011992,2]
[349517365,1737268241123,-500.0,0.00011992,2]
[349517366,1737268241133,-500.0,0.00011992,2]
[349517367,1737268241143,-500.0,0.00011992,2]
[349517368,1737268241153,-500.0,0.00011992,2]
[349517369,1737268241162,-500.0,0.00011992,2]
[349517370,1737268241172,-500.0,0.00011992,2]
[349517371,1737268241182,-500.0,0.00011992,2]
[349517372,1737268241192,-500.0,0.00011992,2]
[349517373,1737268241201,-500.0,0.00011992,2]
[349517374,1737268241211,-500.0,0.00011992,2]
[349517375,1737268241221,-500.0,0.00011992,2]
[349517376,1737268241231,-500.0,0.00011992,2]
[349517377,1737268241240,-500.0,0.00011992,2]
[349517378,1737268241250,-500.0,0.00011992,2]
[349517379,1737268241259,-500.0,0.00011992,2]
[349517380,1737268241268,-518.0,0.00011992,2]
[349517381,1737268241278,-3837.8075315,0.00011992,2]
[349517382,1737268241287,-7557.6179806,0.00011992,2]
[349517383,1737268241296,-3000.0,0.00011992,2]
[349517384,1737268241306,-500.0,0.00011999,2]
[349517385,1737268241315,-500.0,0.00011999,2]
[349517386,1737268241325,-205787.03922192,0.00012,2]
[349517409,1737268243555,-1139.95575863,0.00012,2]
[349517411,1737268246393,-504.51150762,0.00012,2]
[349517412,1737268246406,-796.65,0.00012,2]
[349517421,1737269366133,-245.0,8.97e-05,2]
[349517426,1737269431609,-356.29,8.97e-05,2]
[349517427,1737269431618,-343.17,0.00010137,2]
[349517428,1737269431627,-250.0,0.00010786,2]
[349517429,1737269431637,-250.0,0.00010882,2]
[349517430,1737269431646,-1000.0,0.00010887,2]
[349517431,1737269431658,-250.0,0.00010927,2]
[349517432,1737269431828,-300.0,0.00010966,2]
[349517433,1737269431838,-7771.54,0.00010967,2]
[349517434,1737269431850,-16128.46,0.00010967,2]
[349517435,1737269431859,-200.0,0.00010993,2]
[349517436,1737269431869,-313.69,0.00011049,2]
[349517437,1737269431878,-304.62,0.00011089,2]
[349517438,1737269431887,-601.29,0.00011234,2]
[349517439,1737269431897,-168.75,0.00011456,2]
[349517440,1737269431908,-430.3178249,0.00011571,2]
[349517441,1737269431917,-150.0,0.00011671,2]
[349517442,1737269431927,-150.0,0.00011671,2]
[349517443,1737269431936,-200.0,0.00011701,2]
[349517444,1737269431946,-298.9764879,0.0001176,2]
[349517445,1737269431959,-559.4782,0.000118,2]
[349517446,1737269431969,-213.00705047,0.00011853,2]
[349517447,1737269431979,-302.64,0.00011863,2]
[349517448,1737269431988,-150.0,0.00011863,2]
[349517449,1737269431999,-150.0,0.00011879,2]
[349517450,1737269432008,-3726.8062,0.0001188,2]
[349517451,1737269432018,-1671.45,0.0001188,2]
[349517452,1737269432027,-34925.64769765,0.0001188,2]
[349517453,1737269432243,-5260.9893688,0.0001188,2]
[349517454,1737269432259,-859.19063355,0.0001188,2]
[349517455,1737269432269,-2500.0,0.0001188,2]
[349517456,1737269432278,-2011.78618157,0.0001189,2]
[349517457,1737269432287,-1098.825,0.00011899,2]
[349517458,1737269432297,-18419.4208,0.000119,2]
[349517459,1737269432305,-500.0,0.000119,2]
[349517460,1737269432315,-1000.0,0.000119,2]
[349517461,1737269432324,-1076.3324457,0.000119,2]
[349517462,1737269432333,-5000.0,0.000119,2]
[349517463,1737269432342,-11105.08898877,0.000119,2]
[349517464,1737269432351,-10577.61798631,0.000119,2]
[349517465,1737269432366,-1168.47836856,0.000119,2]
[349517467,1737269432376,-165.1931762,0.000119,2]
[349517469,1737269432386,-2053.98282848,0.000119,2]
[349517471,1737269432395,-463.0,0.00011973,2]
[349517473,1737269432407,-503.87312594,0.00011973,2]
[349517475,1737269432417,-500.0,0.00011973,2]
[349517477,1737269432427,-168.31128465,0.00011979,2]
[349517478,1737269432443,-37.76000065,0.00011979,2]
[349517479,1737269432453,-412.89299935,0.0001198,2]
[349517480,1737269432470,-1189.367004,0.0001198,2]
[349517481,1737269432494,-63319.15918256,0.0001198,2]
[349517483,1737269437573,-432.77233247,0.0001198,2]
[349517484,1737269437745,-21075.4336125,0.0001198,2]
[349517486,1737269437984,-24384.09542701,0.0001198,2]
[349517525,1737269439850,-1751.10386192,0.0001198,2]
[349517526,1737269439953,-492.42194245,0.0001198,2]
[349517527,1737269439965,-6325.32912,0.0001198,2]
[349517528,1737269440055,-1085.58310996,0.0001198,2]
[349517613,1737269445829,-460.01426072,0.000119,2]
[349517614,1737269445839,-593.48573928,0.0001198,2]
[349517615,1737269445850,-468.9200006,0.0001198,2]
[349517618,1737270076663,569.17,8.613e-05,2]
[349517619,1737270330055,200.65400455,8.57e-05,2]
[349517621,1737270416083,310.83037883,0.00022,120]
[349517622,1737270448132,-158.56,0.00010137,2]
[349517623,1737270448154,-1000.0,0.00010432,2]
[349517624,1737270448174,-250.0,0.00010443,2]
[349517625,1737270448195,-250.0,0.00010463,2]
[349517626,1737270448220,-1731.47,0.0001047,2]
[349517627,1737270448241,-250.0,0.00010569,2]
[349517628,1737270448262,-161.49,0.00010838,2]
[349517629,1737270448284,-569.17,0.00010877,2]
[349517630,1737270448307,-307.79,0.00010936,2]